bitfinex/quotes_SOLUSD_20241016
["timestamp","ask_amount","ask_price","bid_price","bid_amount"]
[1729068647944,6.4643,154.7,154.65,6.4661]
[1729068648253,6.4643,154.7,154.66,6.4657]
[1729068649437,6.4643,154.7,154.65,6.4661]
[1729068649952,6.4649,154.68,154.64,6.4665]
[1729068650331,6.4645,154.69,154.65,6.4661]
[1729068651151,20.0,154.74,154.63,14.03960849]
[1729068651358,6.464,154.71,154.63,14.03960849]
[1729068654938,23.776884,154.73,154.67,6.4652]
[1729068655255,20.0,154.71,154.69,6.4644]
[1729068655649,23.776884,154.73,154.69,6.4644]
[1729068659066,16.5957,154.75,154.67,14.03960849]
[1729068659247,20.0,154.74,154.7,6.4638]
[1729068659442,20.0,154.74,154.72,6.4632]
[1729068660944,16.5957,154.75,154.72,6.4632]
[1729068662560,23.0578,154.75,154.7,6.4638]
[1729068662758,23.0578,154.75,154.69,6.4645]
[1729068662759,23.776884,154.74,154.69,6.4645]
[1729068662959,26.4631,154.73,154.65,14.03960849]
[1729068663259,6.4633,154.72,154.68,6.4648]
[1729068664263,6.4638,154.71,154.66,6.4654]
[1729068664949,6.4638,154.71,154.67,6.4651]
[1729068665135,20.0,154.71,154.67,6.4651]
[1729068667035,16.5957,154.75,154.65,14.03960849]
[1729068667439,23.0578,154.75,154.67,14.03960849]
[1729068667750,23.0578,154.75,154.71,6.4636]
[1729068668662,23.0578,154.75,154.7,6.464]
[1729068670842,26.4608,154.78,154.74,6.4621]
[1729068671863,15.9425,154.79,154.73,14.03960849]
[1729068672058,15.9425,154.79,154.76,6.4612]
[1729068672364,6.4595,154.81,154.76,6.4612]
[1729068673060,6.4595,154.81,154.77,6.4611]
[1729068674940,6.4595,154.81,154.76,6.4615]
[1729068675144,6.4607,154.79,154.74,6.4623]
[1729068675361,6.461,154.78,154.73,6.4628]
[1729068675870,6.461,154.78,154.74,6.4623]
[1729068676253,6.4604,154.79,154.74,6.4623]
[1729068676674,6.4607,154.78,154.74,6.4623]
[1729068676983,6.4607,154.78,154.7,20.0]
[1729068676984,43.776884,154.8,154.7,20.0]
[1729068677157,6.4613,154.77,154.72,6.4629]
[1729068677863,6.4626,154.74,154.69,6.4641]
[1729068678065,6.4626,154.74,154.65,14.03960849]
[1729068678278,6.4621,154.75,154.7,6.4637]
[1729068678574,20.0,154.78,154.69,14.03960849]
[1729068678764,20.0,154.78,154.74,6.4623]
[1729068678963,28.3693,154.79,154.75,6.4618]
[1729068679265,6.4598,154.81,154.77,6.4611]
[1729068679656,6.4598,154.81,154.76,6.4614]
[1729068681167,6.4599,154.8,154.76,6.4614]
[1729068681473,6.4613,154.77,154.73,6.4627]
[1729068682974,6.4606,154.79,154.74,6.4622]
[1729068683189,26.4599,154.8,154.76,6.4615]
[1729068684779,26.4599,154.8,154.75,6.4619]
[1729068685776,30.0,154.76,154.75,6.4619]
[1729068686077,30.0,154.76,154.7,15.0593]
[1729068686282,30.0,154.76,154.73,6.4626]
[1729068689058,30.0,154.76,154.7,15.0593]
[1729068689259,30.0,154.76,154.75,6.462]
[1729068690360,30.0,154.76,154.74,6.4623]
[1729068691779,30.0,154.76,154.7,29.09890849]
[1729068691780,30.0,154.76,154.72,14.03960849]
[1729068691980,30.0,154.76,154.73,20.0]
[1729068693375,43.776884,154.82,154.73,20.0]
[1729068693789,63.316884,154.82,154.7,15.0593]
[1729068693990,30.0,154.75,154.69,20.0]
[1729068695660,30.0,154.75,154.68,20.0]
[1729068695888,30.0,154.75,154.68,34.03960849]
[1729068696187,36.4622,154.75,154.68,34.03960849]
[1729068696388,36.4622,154.75,154.68,14.03960849]
[1729068697582,30.0,154.75,154.68,14.03960849]
[1729068697783,30.0,154.75,154.7,14.03960849]
[1729068699289,30.0,154.75,154.68,14.03960849]
[1729068699868,30.0,154.75,154.7,14.03960849]
[1729068700068,30.0,154.75,154.72,14.03960849]
[1729068701376,22.8536,154.8,154.72,14.03960849]
[1729068707298,16.3936,154.8,154.72,14.03960849]
[1729068707706,16.3936,154.8,154.73,20.0]
[1729068707876,6.5503,154.82,154.74,14.03960849]
[1729068708087,20.0,154.83,154.75,20.0]
[1729068708399,26.4587,154.83,154.75,20.0]
[1729068710400,20.0,154.83,154.75,20.0]
[1729068710881,6.4599,154.8,154.73,20.0]
[1729068711807,26.4596,154.81,154.74,14.03960849]
[1729068712184,20.0,154.81,154.74,14.03960849]
[1729068712498,16.0304,154.84,154.75,20.0]
[1729068712688,20.0,154.83,154.75,20.0]
[1729068712876,26.4587,154.83,154.75,20.0]
[1729068713078,6.4593,154.82,154.75,20.0]
[1729068716104,6.4598,154.81,154.72,30.22330849]
[1729068716299,6.4598,154.81,154.73,20.0]
[1729068719199,6.4598,154.81,154.74,14.03960849]
[1729068720712,23.776884,154.82,154.73,20.0]
[1729068720919,23.776884,154.82,154.69,6.72650803]
[1729068720920,6.4619,154.76,154.69,6.72650803]
[1729068721214,38.870284,154.79,154.69,3.76560804]
[1729068721215,20.0,154.77,154.69,3.76560804]
[1729068721387,26.4614,154.77,154.69,3.76560804]
[1729068721788,30.0,154.75,154.68,29.40480849]
[1729068721994,30.0,154.75,154.69,3.76522953]
[1729068722911,30.0,154.75,154.68,29.40480849]
[1729068723413,45.330684,154.79,154.72,14.03960849]
[1729068723414,15.0934,154.79,154.72,14.03960849]
[1729068723611,22.8343,154.83,154.74,14.03960849]
[1729068723789,16.3753,154.83,154.74,14.03960849]
[1729068723990,6.4594,154.82,154.74,14.03960849]
[1729068727109,16.3753,154.83,154.74,14.03960849]
[1729068727307,43.776884,154.82,154.73,20.0]
[1729068728292,6.46,154.8,154.73,20.0]
[1729068729122,6.4606,154.79,154.73,20.0]
[1729068729422,43.776884,154.82,154.73,20.0]
[1729068729717,26.4592,154.82,154.74,14.03960849]
[1729068730916,20.0,154.82,154.73,20.0]
[1729068731092,6.4604,154.79,154.73,20.0]
[1729068731413,6.46,154.8,154.73,20.0]
[1729068733215,20.0,154.82,154.7,14.03960849]
[1729068733216,6.4609,154.78,154.7,14.03960849]
[1729068733510,6.4609,154.78,154.71,3.75829494]
[1729068733711,23.776884,154.81,154.71,3.75829494]
[1729068733712,6.4613,154.77,154.71,3.75829494]
[1729068733900,20.0,154.78,154.69,3.75829494]
[1729068734097,26.4608,154.78,154.7,14.03960849]
[1729068734609,30.0,154.74,154.7,14.03960849]
[1729068736422,30.0,154.74,154.68,14.03960849]
[1729068736594,30.0,154.74,154.67,6.72460148]
[1729068736793,30.0,154.74,154.68,3.76058576]
[1729068737005,36.4628,154.74,154.68,3.76058576]
[1729068737318,30.0,154.74,154.67,20.0]
[1729068737695,30.0,154.74,154.68,14.03960849]
[1729068738115,30.0,154.74,154.7,14.03960849]
[1729068746494,30.0,154.74,154.68,14.03960849]
[1729068746820,36.4624,154.74,154.69,3.76598841]
[1729068747028,36.4624,154.74,154.68,3.76633911]
[1729068747320,6.4629,154.73,154.66,0.97022736]
[1729068747701,30.0,154.72,154.66,4.73700983]
[1729068747896,30.0,154.72,154.66,0.97022736]
[1729068748108,30.0,154.72,154.66,4.73700983]
[1729068748315,30.0,154.72,154.66,0.97022736]
[1729068748525,30.0,154.72,154.66,4.73700983]
[1729068748730,30.0,154.72,154.66,0.97022736]
[1729068749396,30.0,154.72,154.66,3.76586824]
[1729068749596,36.4633,154.72,154.66,3.76586824]
[1729068749796,36.4633,154.72,154.65,3.76586824]
[1729068750218,30.0,154.72,154.65,3.76586824]
[1729068753125,30.0,154.72,154.65,3.76553036]
[1729068755828,22.4601,154.71,154.63,20.0]
[1729068756131,30.0,154.69,154.63,20.0]
[1729068756923,30.0,154.69,154.62,15.01011122]
[1729068757425,30.0,154.69,154.63,3.76736455]
[1729068757608,30.0,154.69,154.62,0.97050273]
[1729068757810,30.0,154.69,154.63,8.99988549]
[1729068758008,30.0,154.69,154.65,8.99988549]
[1729068758328,30.0,154.69,154.67,8.99988549]
[1729068761119,30.0,154.69,154.65,8.99988549]
[1729068762421,30.0,154.69,154.62,0.97050273]
[1729068762620,30.0,154.69,154.65,8.99988549]
[1729068762833,23.776884,154.68,154.6,6.71124226]
[1729068763025,23.776884,154.68,154.58,8.99988549]
[1729068763214,23.776884,154.68,154.58,12.7672489]
[1729068763215,6.4659,154.66,154.58,12.7672489]
[1729068763416,15.1972,154.65,154.58,8.99988549]
[1729068763619,15.1972,154.65,154.6,8.99988549]
[1729068766125,30.0,154.64,154.6,8.99988549]
[1729068769442,30.0,154.64,154.58,8.99988549]
[1729068770718,30.0,154.64,154.6,8.99988549]
[1729068774843,30.0,154.64,154.62,8.99988549]
[1729068777932,21.7755,154.69,154.62,8.99988549]
[1729068781130,6.4649,154.68,154.62,8.99988549]
[1729068782542,15.311,154.69,154.62,8.99988549]
[1729068782748,15.311,154.69,154.64,8.99988549]
[1729068783046,30.0,154.65,154.64,8.99988549]
[1729068783645,15.311,154.69,154.64,8.99988549]
[1729068785632,15.311,154.69,154.62,8.99988549]
[1729068786651,30.0,154.64,154.62,8.99988549]
[1729068786843,30.0,154.64,154.63,8.99988549]
[1729068787429,15.311,154.69,154.63,8.99988549]
[1729068787849,15.311,154.69,154.65,8.99988549]
[1729068788151,30.0,154.66,154.65,8.99988549]
[1729068789052,15.311,154.69,154.65,8.99988549]
[1729068790534,30.0,154.66,154.65,8.99988549]
[1729068791737,30.0,154.66,154.61,23.76252152]
[1729068791948,30.0,154.66,154.61,20.0]
[1729068792148,30.0,154.66,154.62,8.99988549]
[1729068793435,30.0,154.66,154.58,20.0]
[1729068793634,30.0,154.66,154.57,25.7670178]
[1729068793635,36.466,154.66,154.59,12.76919173]
[1729068793951,30.0,154.65,154.59,8.99988549]
[1729068795431,36.4662,154.65,154.61,6.4677]
[1729068795748,30.0,154.65,154.61,6.4677]
[1729068796441,36.4662,154.65,154.61,6.4677]
[1729068797360,30.0,154.65,154.61,6.4677]
[1729068799950,30.0,154.65,154.61,15.46758549]
[1729068800550,30.0,154.65,154.61,6.4677]
[1729068800853,36.4665,154.65,154.61,6.4677]
[1729068801160,45.957084,154.64,154.56,9.97077856]
[1729068801340,30.0,154.63,154.6,6.4682]
[1729068803537,23.776884,154.62,154.58,6.4688]
[1729068803755,30.0,154.61,154.58,6.4688]
[1729068803942,23.776884,154.63,154.58,6.4688]
[1729068804458,6.4676,154.62,154.58,6.4688]
[1729068804658,28.6471,154.64,154.6,6.4681]
[1729068805566,22.1802,154.64,154.6,6.4681]
[1729068805739,22.1802,154.64,154.58,8.99988549]
[1729068805933,22.1802,154.64,154.61,6.4676]
[1729068806347,20.0,154.67,154.62,8.99988549]
[1729068806550,22.8118,154.68,154.64,6.4663]
[1729068806955,30.0,154.65,154.54,0.2]
[1729068807146,30.0,154.65,154.62,6.4673]
[1729068809559,36.4662,154.65,154.54,0.1]
[1729068809767,36.4662,154.65,154.59,8.99988549]
[1729068811763,30.0,154.65,154.62,6.467]
[1729068814448,23.776884,154.64,154.53,23.57992663]
[1729068814651,30.0,154.62,154.59,8.99988549]
[1729068820570,30.0,154.62,154.61,6.4678]
[1729068826982,30.0,154.62,154.61,15.46768549]
[1729068827182,22.8118,154.68,154.61,15.46768549]
[1729068827183,16.5528,154.68,154.61,8.99988549]
[1729068827389,16.5528,154.68,154.65,8.99988549]
[1729068827581,6.3466,154.72,154.65,8.99988549]
[1729068827582,30.0,154.66,154.65,8.99988549]
[1729068829677,43.776884,154.71,154.65,8.99988549]
[1729068830978,20.0,154.71,154.65,8.99988549]
[1729068831173,21.5955,154.72,154.65,8.99988549]
[1729068831480,21.5955,154.72,154.67,8.99988549]
[1729068831785,30.0,154.68,154.67,8.99988549]
[1729068832882,30.0,154.68,154.65,8.99988549]
[1729068835290,30.0,154.68,154.67,8.99988549]
[1729068836860,30.0,154.68,154.65,8.99988549]
[1729068842996,30.0,154.68,154.67,8.99988549]
[1729068843183,21.5955,154.72,154.67,8.99988549]
[1729068845984,28.0588,154.72,154.67,8.99988549]
[1729068846385,28.0588,154.72,154.61,0.1]
[1729068846386,6.4639,154.71,154.65,8.99988549]
[1729068848002,30.0,154.67,154.65,8.99988549]
[1729068852480,30.0,154.67,154.6,20.97060029]
[1729068852802,6.4658,154.66,154.59,8.99988549]
[1729068853000,30.0,154.65,154.59,8.99988549]
[1729068857803,30.0,154.65,154.61,8.99988549]
[1729068858004,30.0,154.65,154.59,8.99988549]
[1729068858204,23.776884,154.64,154.56,20.0]
[1729068858509,36.4671,154.63,154.57,8.99988549]
[1729068858882,6.4675,154.62,154.57,8.99988549]
[1729068859082,15.3965,154.61,154.55,0.97089565]
[1729068859301,30.0,154.6,154.55,9.97078114]
[1729068859687,30.0,154.6,154.55,8.99988549]
[1729068859886,30.0,154.6,154.56,6.4696]
[1729068861989,30.0,154.6,154.57,6.4694]
[1729068864106,30.0,154.6,154.58,6.4691]
[1729068864611,15.3965,154.61,154.58,6.4691]
[1729068865113,15.3965,154.61,154.57,8.99988549]
[1729068865297,15.3965,154.61,154.57,15.46928549]
[1729068865612,15.3965,154.61,154.57,6.4694]
[1729068865807,15.3965,154.61,154.57,15.46928549]
[1729068866590,15.3965,154.61,154.57,6.4694]
[1729068866811,15.3965,154.61,154.58,6.4687]
[1729068867592,30.0,154.59,154.58,6.4687]
[1729068884921,15.1792,154.65,154.57,8.99988549]
[1729068885106,21.6454,154.65,154.61,6.4678]
[1729068885722,23.776884,154.64,154.54,20.0]
[1729068886018,23.776884,154.64,154.58,6.469]
[1729068886019,6.4675,154.62,154.58,6.469]
[1729068886602,6.4679,154.61,154.57,6.4694]
[1729068887022,6.4676,154.62,154.57,6.4694]
[1729068887922,30.0,154.59,154.57,6.4694]
[1729068890022,6.4696,154.57,154.53,7.10121709]
[1729068890217,30.0,154.56,154.53,7.10121709]
[1729068890522,30.0,154.56,154.54,6.4707]
[1729068896330,30.0,154.56,154.55,6.4703]
[1729068898940,12.7543,154.62,154.58,6.4691]
[1729068899113,30.0,154.59,154.58,6.4691]
[1729068902932,30.0,154.59,154.58,15.46898549]
[1729068903233,30.0,154.59,154.58,6.4691]
[1729068904005,30.0,154.59,154.58,15.46898549]
[1729068905417,15.6374,154.63,154.6,6.4679]
[1729068905611,6.1954,154.66,154.6,8.99988549]
[1729068905929,6.1954,154.66,154.64,6.4666]
[1729068906228,30.0,154.65,154.6,8.99988549]
[1729068906413,30.0,154.65,154.62,6.4674]
[1729068906613,6.1954,154.66,154.62,6.4674]
[1729068908237,30.0,154.63,154.62,6.4674]
[1729068908906,30.0,154.63,154.62,15.46728549]
[1729068913019,30.0,154.63,154.62,35.46728549]
[1729068914840,30.0,154.63,154.62,6.4674]
[1729068915046,30.0,154.63,154.62,15.46728549]
[1729068915721,30.0,154.63,154.62,6.4674]
[1729068916138,30.0,154.63,154.62,15.46728549]
[1729068916820,30.0,154.63,154.62,35.46728549]
[1729068919436,22.7052,154.7,154.63,0.1]
[1729068919637,20.0,154.73,154.68,8.99988549]
[1729068920026,26.4629,154.73,154.66,8.99988549]
[1729068921639,30.0,154.68,154.63,8.99988549]
[1729068924645,36.2798,154.68,154.61,8.99988549]
[1729068924845,6.4657,154.67,154.61,8.99988549]
[1729068925158,30.0,154.66,154.61,8.99988549]
[1729068926047,6.4657,154.67,154.61,8.99988549]
[1729068928041,6.4657,154.67,154.59,8.99988549]
[1729068929035,30.0,154.64,154.59,8.99988549]
[1729068929248,30.0,154.64,154.56,7.6607218]
[1729068929439,22.4849,154.63,154.56,16.66060729]
[1729068929643,22.4849,154.63,154.56,9.97073091]
[1729068930019,30.0,154.62,154.56,9.97073091]
[1729068930927,30.0,154.62,154.58,8.99988549]
[1729068931129,30.0,154.62,154.61,6.4678]
[1729068934953,21.5756,154.71,154.66,6.4654]
[1729068935151,30.0,154.67,154.66,6.4654]
[1729068942032,15.1119,154.71,154.63,14.07224273]
[1729068942357,15.1119,154.71,154.64,20.0]
[1729068943055,6.4633,154.72,154.64,20.0]
[1729068943557,12.9681,154.73,154.64,20.0]
[1729068944950,20.0,154.71,154.63,14.07224273]
[1729068945133,30.0,154.66,154.59,30.09795409]
[1729068945743,30.0,154.66,154.59,15.04295409]
[1729068946359,23.776884,154.65,154.55,53.4164608]
[1729068946536,6.4669,154.64,154.56,3.7775298]
[1729068946736,6.4669,154.64,154.55,37.201743]
[1729068947857,6.4669,154.64,154.59,6.4683]
[1729068949570,30.0,154.62,154.6,6.4681]
[1729068950139,30.0,154.62,154.58,6.469]
[1729068950342,30.0,154.62,154.56,20.0]
[1729068950559,30.244784,154.61,154.54,20.0]
[1729068950761,30.0,154.6,154.54,20.0]
[1729068953369,30.0,154.6,154.59,6.4687]
[1729068963767,22.9354,154.66,154.61,6.4674]
[1729068963978,30.0,154.62,154.61,6.4674]
[1729068964304,30.0,154.62,154.58,9.00860292]
[1729068964488,36.4678,154.62,154.57,6.4692]
[1729068964772,28.9339,154.61,154.54,9.00860292]
[1729068964969,30.0,154.6,154.54,9.00860292]
[1729068965153,30.0,154.6,154.57,6.4695]
[1729068966778,6.4683,154.6,154.53,0.63041709]
[1729068967154,6.4687,154.59,154.55,6.4703]
[1729068967670,22.4658,154.61,154.55,6.4703]
[1729068967862,50.245184,154.6,154.55,6.4703]
[1729068968378,6.4689,154.59,154.55,6.4703]
[1729068968677,6.4689,154.59,154.54,6.4706]
[1729068969661,30.0,154.57,154.54,6.4706]
[1729068970471,36.4696,154.57,154.53,0.63041709]
[1729068970776,30.0,154.57,154.53,0.63041709]
[1729068970984,30.0,154.57,154.53,7.10131709]
[1729068975365,30.0,154.57,154.55,6.4699]
[1729068975563,30.0,154.57,154.56,6.4699]
[1729068975963,30.0,154.57,154.55,6.4703]
[1729068977077,30.0,154.57,154.53,0.63041709]
[1729068977290,30.0,154.57,154.56,6.4699]
[1729068980071,20.0,154.6,154.53,0.63041709]
[1729068980266,20.0,154.6,154.57,6.4694]
[1729068982379,30.245684,154.59,154.55,6.4702]
[1729068982581,26.4684,154.6,154.56,6.4696]
[1729068983196,30.0,154.57,154.56,6.4696]
[1729068998084,30.0,154.57,154.55,6.4702]
[1729068999195,30.0,154.57,154.56,6.4699]
[1729069000506,26.4685,154.6,154.56,6.4699]
[1729069002110,26.4683,154.6,154.56,6.4699]
[1729069003512,30.0,154.57,154.56,6.4699]
[1729069010717,30.0,154.57,154.55,3.79922414]
[1729069010718,30.0,154.57,154.55,6.4703]
[1729069011605,30.0,154.56,154.55,6.4703]
[1729069020820,6.4687,154.59,154.55,6.4703]
[1729069023737,30.0,154.56,154.55,6.4703]
[1729069026937,30.0,154.56,154.55,10.27214471]
[1729069027124,6.4692,154.58,154.54,6.4705]
[1729069028119,6.4688,154.59,154.55,6.4703]
[1729069028337,23.776884,154.57,154.53,0.63041709]
[1729069028535,50.247684,154.54,154.53,0.63041709]
[1729069030013,80.247684,154.54,154.53,0.63041709]
[1729069048149,50.0,154.54,154.53,0.63041709]
[1729069048458,16.6309,154.56,154.53,0.63041709]
[1729069048649,6.4708,154.54,154.53,0.63041709]
[1729069049447,26.4708,154.54,154.53,0.63041709]
[1729069049637,50.247684,154.54,154.53,0.63041709]
[1729069050953,80.247684,154.54,154.53,0.63041709]
[1729069056235,56.4708,154.54,154.53,0.63041709]
[1729069056431,50.0,154.54,154.53,0.63041709]
[1729069063163,30.0,154.54,154.53,0.63041709]
[1729069067751,6.4699,154.56,154.53,0.63041709]
[1729069068248,6.4708,154.54,154.53,0.63041709]
[1729069068461,6.4704,154.55,154.53,0.63041709]
[1729069070772,30.0,154.54,154.53,0.63041709]
[1729069078952,36.4708,154.54,154.53,0.63041709]
[1729069079370,30.0,154.54,154.53,0.63041709]
[1729069098781,30.0,154.54,154.53,7.10161709]
[1729069113690,30.0,154.54,154.53,10.89956565]
[1729069114197,30.0,154.54,154.53,10.89959305]
[1729069114383,30.0,154.54,154.53,15.54861404]
[1729069115113,30.0,154.54,154.53,19.34591215]
[1729069116186,20.0,154.62,154.59,6.4686]
[1729069116501,30.0,154.6,154.59,6.4686]
[1729069117304,30.0,154.6,154.58,6.4689]
[1729069117512,30.0,154.59,154.58,6.4689]
[1729069118702,36.4688,154.59,154.55,6.47]
[1729069119014,30.0,154.59,154.56,6.4699]
[1729069119204,30.0,154.59,154.54,8.44699695]
[1729069119790,30.0,154.59,154.57,6.4692]
[1729069121393,36.4687,154.59,154.53,0.63041709]
[1729069121817,36.4687,154.59,154.54,8.44699695]
[1729069121818,30.0,154.59,154.54,8.44699695]
[1729069121993,30.0,154.59,154.56,6.4699]
[1729069131612,30.0,154.59,154.56,6.59584599]
[1729069134220,30.0,154.59,154.56,0.12594599]
[1729069134431,36.4687,154.59,154.56,0.12594599]
[1729069137830,30.0,154.59,154.56,6.59574599]
[1729069148046,30.0,154.59,154.57,8.44699695]
[1729069148230,30.0,154.59,154.58,6.4691]
[1729069162033,30.0,154.59,154.58,6.59504599]
[1729069163138,16.0542,154.64,154.58,0.12594599]
[1729069163433,16.0542,154.64,154.59,8.44357491]
[1729069163642,30.0,154.6,154.59,8.44357491]
[1729069166250,30.0,154.6,154.58,8.56782349]
[1729069168157,6.6618,154.63,154.58,0.12594599]
[1729069168453,6.4685,154.6,154.58,0.12594599]
[1729069168750,6.4679,154.61,154.58,0.12594599]
[1729069171243,30.0,154.59,154.58,0.12594599]
[1729069178559,51.8411,154.59,154.58,0.12594599]
[1729069180067,45.3724,154.59,154.58,0.12594599]
[1729069182164,30.0,154.59,154.58,0.12594599]
[1729069188377,30.0,154.59,154.58,8.56782349]
[1729069190076,6.4664,154.65,154.58,8.56782349]
[1729069191053,6.4664,154.65,154.58,0.12594599]
[1729069191387,6.4664,154.65,154.58,8.56782349]
[1729069191682,30.0,154.59,154.58,8.56782349]
[1729069195952,30.0,154.59,154.58,28.56782349]
[1729069196357,28.9951,154.67,154.58,28.56782349]
[1729069196591,28.9951,154.67,154.61,8.4418775]
[1729069196765,30.0,154.62,154.61,8.4418775]
[1729069200781,30.0,154.62,154.58,0.12594599]
[1729069200983,30.0,154.62,154.6,8.4418775]
[1729069205086,22.5296,154.67,154.6,8.4418775]
[1729069205262,22.5296,154.67,154.63,8.4418775]
[1729069205585,30.0,154.64,154.6,20.1]
[1729069205768,30.0,154.64,154.6,20.0]
[1729069206165,30.0,154.64,154.61,8.4418775]
[1729069207398,30.0,154.64,154.61,8.56782349]
[1729069208078,6.465,154.68,154.61,8.56782349]
[1729069211103,30.0,154.63,154.61,8.56782349]
[1729069214171,30.0,154.63,154.61,0.12594599]
[1729069228406,36.4672,154.63,154.61,0.12594599]
[1729069228897,30.0,154.63,154.61,0.12594599]
[1729069229100,43.0077,154.62,154.61,0.12594599]
[1729069229290,73.0077,154.62,154.61,0.12594599]
[1729069231311,102.971884,154.62,154.61,0.12594599]
[1729069233904,72.7276,154.62,154.61,0.12594599]
[1729069234415,79.195,154.62,154.61,0.12594599]
[1729069239708,52.7276,154.62,154.61,0.12594599]
[1729069239914,30.0,154.62,154.61,0.12594599]
[1729069242714,30.0,154.62,154.61,9.13272414]
[1729069243893,28.0964,154.7,154.61,9.13272414]
[1729069244414,20.0,154.69,154.61,9.13272414]
[1729069244715,28.0964,154.7,154.61,9.13272414]
[1729069246519,6.4649,154.68,154.61,9.13272414]
[1729069254121,30.0,154.62,154.61,0.12594599]
[1729069257826,23.776884,154.68,154.61,0.12594599]
[1729069258110,23.776884,154.68,154.62,9.00677815]
[1729069258315,30.0,154.63,154.62,9.00677815]
[1729069261406,30.0,154.63,154.62,29.00677815]
[1729069262012,21.6322,154.7,154.62,29.00677815]
[1729069262216,21.6322,154.7,154.64,9.00677815]
[1729069262413,30.0,154.65,154.64,9.00677815]
[1729069263398,21.6322,154.7,154.64,9.00677815]
[1729069265226,15.3694,154.7,154.64,9.00677815]
[1729069265806,20.0,154.73,154.66,9.00677815]
[1729069266016,29.5352,154.74,154.63,20.0]
[1729069266017,30.0,154.67,154.63,20.0]
[1729069266218,30.0,154.67,154.63,9.00677815]
[1729069267123,30.0,154.66,154.63,9.00677815]
[1729069267936,30.0,154.66,154.63,9.13272414]
[1729069268738,30.0,154.66,154.63,0.12594599]
[1729069271316,30.0,154.66,154.63,9.13272414]
[1729069279739,30.0,154.66,154.65,9.00677815]
[1729069280815,30.0,154.66,154.63,9.13272414]
[1729069286123,29.80600731,154.66,154.63,9.13272414]
[1729069286519,29.80600731,154.66,154.63,9.12533531]
[1729069288452,15.5702,154.69,154.63,9.12533531]
[1729069289723,15.5702,154.69,154.63,12.8926109]
[1729069289922,15.5702,154.69,154.63,9.12533531]
[1729069290453,22.0349,154.69,154.63,0.12594599]
[1729069291323,30.0,154.65,154.63,0.12594599]
[1729069293461,30.0,154.65,154.63,9.12722519]
[1729069294132,30.0,154.65,154.63,0.12594599]
[1729069297732,30.0,154.65,154.63,9.12722519]
[1729069298461,30.0,154.65,154.63,12.89537427]
[1729069298752,30.0,154.65,154.63,9.12722519]
[1729069299229,30.0,154.65,154.63,12.89733669]
[1729069299425,30.0,154.65,154.64,3.7701115]
[1729069299845,30.0,154.65,154.63,9.12722519]
[1729069300055,30.0,154.65,154.64,3.77049041]
[1729069300242,15.5702,154.69,154.64,3.77049041]
[1729069300449,15.5702,154.69,154.65,9.0012792]
[1729069300834,21.5405,154.73,154.65,9.0012792]
[1729069301533,21.5405,154.73,154.65,12.77250858]
[1729069301753,21.5405,154.73,154.65,9.0012792]
[1729069302256,21.5405,154.73,154.65,12.77320992]
[1729069302458,21.5405,154.73,154.65,9.0012792]
[1729069302829,21.5405,154.73,154.65,12.77427566]
[1729069303052,21.5405,154.73,154.65,9.0012792]
[1729069304229,21.5405,154.73,154.66,3.77638695]
[1729069304431,21.5405,154.73,154.65,9.0012792]
[1729069304852,21.5405,154.73,154.66,3.77622808]
[1729069305059,21.5405,154.73,154.65,9.0012792]
[1729069305239,21.5405,154.73,154.66,3.77809972]
[1729069305557,21.5405,154.73,154.65,9.0012792]
[1729069305763,21.5405,154.73,154.66,3.77892218]